bitfinex/quotes_ETHUSD_20241105
["timestamp","ask_amount","ask_price","bid_price","bid_amount"]
[1730779517574,0.493266,2420.9,2420.8,1.36941799]
[1730779517905,8.26117,2421.0,2420.8,1.36941799]
[1730779517906,4.13055,2421.0,2420.8,1.36941799]
[1730779518119,4.13033,2421.2,2420.9,1.36941799]
[1730779518279,4.13033,2421.2,2421.1,0.49606974]
[1730779518477,4.13033,2421.2,2421.1,1.36941799]
[1730779519296,4.956365,2421.2,2421.1,1.86537013]
[1730779520611,0.826035,2421.2,2421.1,1.86537054]
[1730779520780,8.26016,2421.3,2421.1,1.86537054]
[1730779520981,8.26016,2421.3,2421.2,1.86537054]
[1730779521208,4.13002,2421.3,2421.2,1.86537054]
[1730779521919,4.13002,2421.3,2421.0,0.7958]
[1730779521920,4.13027,2421.2,2421.0,0.7958]
[1730779522103,4.13018,2421.2,2421.1,1.09122666]
[1730779522302,4.13018,2421.2,2421.1,1.86505432]
[1730779522811,4.13018,2421.2,2421.1,1.36894942]
[1730779525822,4.13018,2421.2,2421.1,0.47623637]
[1730779526119,4.13018,2421.2,2421.1,1.36908977]
[1730779529629,4.13018,2421.2,2421.0,0.7958]
[1730779529807,4.13018,2421.2,2421.1,1.3687942]
[1730779530295,4.13018,2421.2,2421.1,1.36885931]
[1730779531730,4.13018,2421.2,2421.1,1.3688761]
[1730779532225,4.13018,2421.2,2421.1,1.40569731]
[1730779533639,0.812,2421.7,2421.2,0.7509]
[1730779533793,4.13001,2421.4,2421.2,0.7509]
[1730779534000,4.13001,2421.4,2421.1,0.03682121]
[1730779534001,4.12984,2421.4,2421.3,1.36847288]
[1730779534332,4.12984,2421.4,2421.3,1.86441347]
[1730779535640,4.12984,2421.4,2421.3,1.9042379]
[1730779535845,5.036874,2421.4,2421.3,1.9042379]
[1730779537507,5.036874,2421.4,2421.3,0.02333626]
[1730779537712,5.036874,2421.4,2420.9,0.8301]
[1730779537713,4.13017,2421.3,2420.9,0.8301]
[1730779538009,4.13017,2421.3,2421.2,0.4958805]
[1730779538204,5.0468744,2421.3,2421.2,1.86444201]
[1730779539501,5.0468744,2421.3,2421.2,1.39182131]
[1730779539698,4.13017,2421.3,2421.2,1.39182131]
[1730779539900,9.64659888,2421.3,2421.2,1.39182131]
[1730779540212,9.64659888,2421.3,2420.4,0.86083535]
[1730779540213,4.1311,2420.7,2420.5,0.48932251]
[1730779540398,4.1311,2420.7,2420.6,1.86483397]
[1730779540594,4.1311,2420.7,2420.6,1.86483248]
[1730779541340,5.036739,2420.7,2420.6,1.86483248]
[1730779541514,5.036739,2420.7,2420.6,1.2688398]
[1730779544096,5.036739,2420.7,2420.6,0.67368185]
[1730779544510,5.820039,2420.7,2420.6,0.67368185]
[1730779545105,4.13183,2420.3,2420.1,0.49550237]
[1730779545309,4.13183,2420.3,2420.2,1.07024639]
[1730779545310,4.1318,2420.3,2420.2,1.07024639]
[1730779547163,4.9178,2420.3,2420.2,1.07024639]
[1730779547363,4.9178,2420.3,2420.2,0.47565927]
[1730779547572,6.63982888,2420.3,2420.2,0.47565927]
[1730779547888,4.9178,2420.3,2420.2,0.47565927]
[1730779548075,5.99593989,2420.3,2420.2,0.47565927]
[1730779548281,1.86413989,2420.3,2419.9,0.0593703]
[1730779548624,4.13223,2420.0,2419.9,0.0593703]
[1730779548804,4.13223,2420.0,2419.9,0.53434205]
[1730779549006,4.13223,2420.0,2419.9,1.12806977]
[1730779549509,4.13197,2420.2,2419.9,1.12806977]
[1730779549708,0.59961099,2420.1,2420.0,0.47497175]
[1730779549939,4.73167099,2420.1,2420.0,0.47497175]
[1730779550302,4.13223,2420.0,2419.9,0.0593703]
[1730779553450,4.13243,2419.9,2419.6,0.7279703]
[1730779553747,4.13243,2419.9,2419.7,0.29627514]
[1730779554042,4.13243,2419.9,2419.8,0.29627514]
[1730779554402,4.13243,2419.9,2419.6,0.7279703]
[1730779554602,4.13243,2419.9,2419.7,0.29619518]
[1730779554797,4.13243,2419.9,2419.6,0.7279703]
[1730779555028,4.13243,2419.9,2419.7,0.29619657]
[1730779555224,4.13243,2419.9,2419.7,0.03752034]
[1730779556040,4.13243,2419.9,2419.8,0.0392569]
[1730779556923,6.38647799,2420.1,2419.8,0.0392569]
[1730779557125,5.786867,2420.1,2419.8,0.0392569]
[1730779557328,4.1321,2420.1,2419.8,0.0392569]
[1730779558328,4.13231,2420.0,2419.8,0.0392569]
[1730779558530,8.26463,2420.0,2419.8,0.0392569]
[1730779558706,4.13231,2420.0,2419.8,0.0392569]
[1730779558902,8.2647,2420.0,2419.8,0.0392569]
[1730779559220,8.99572896,2420.0,2419.8,0.0392569]
[1730779560144,4.86336896,2420.0,2419.8,0.0392569]
[1730779560441,4.13231,2420.0,2419.8,0.0392569]
[1730779561617,8.26468,2420.0,2419.8,0.0392569]
[1730779561802,8.26463,2420.0,2419.8,0.0392569]
[1730779562010,4.13231,2420.0,2419.9,0.29608024]
[1730779562220,4.13231,2420.0,2419.9,0.31304628]
[1730779562428,5.786454,2420.3,2419.9,0.31304628]
[1730779562631,4.13198,2420.2,2420.0,1.08239158]
[1730779562832,5.0916254,2420.3,2420.0,0.80323189]
[1730779563034,4.1318,2420.3,2420.1,0.29606346]
[1730779563222,4.1318,2420.3,2420.1,0.01689774]
[1730779563424,8.26361,2420.3,2420.1,0.01689774]
[1730779563605,4.13188,2420.2,2420.1,0.01689774]
[1730779563805,4.13188,2420.2,2420.1,0.31305212]
[1730779564229,4.1318,2420.3,2420.1,0.31305212]
[1730779564429,4.1318,2420.3,2420.2,0.29615438]
[1730779565141,5.039315,2420.3,2420.2,0.29615438]
[1730779565345,4.13188,2420.2,2420.1,0.01689774]
[1730779565719,4.13188,2420.2,2420.1,0.31327032]
[1730779566108,4.1318,2420.3,2420.1,0.31327032]
[1730779566423,4.1318,2420.3,2420.2,0.29637258]
[1730779566748,4.1318,2420.3,2420.2,0.31323618]
[1730779566911,4.958137,2420.3,2420.2,0.31323618]
[1730779568338,4.958137,2420.3,2420.2,0.78825673]
[1730779568956,4.958137,2420.3,2420.2,0.0168636]
[1730779569244,4.958137,2420.3,2420.2,0.77190542]
[1730779569456,4.958137,2420.3,2420.2,0.79345119]
[1730779570307,4.958137,2420.3,2420.2,0.81031479]
[1730779571651,4.1318,2420.3,2420.2,1.40484904]
[1730779572012,4.1318,2420.3,2420.2,0.81031479]
[1730779572419,4.1318,2420.3,2420.2,1.40507266]
[1730779572960,4.1318,2420.3,2420.2,1.40632361]
[1730779573172,4.958137,2420.3,2420.2,1.40632361]
[1730779574620,4.958137,2420.3,2420.2,0.81156808]
[1730779575055,4.958137,2420.3,2420.2,1.40669812]
[1730779576565,4.958137,2420.3,2420.2,1.30669812]
[1730779576723,4.958137,2420.3,2420.2,1.34386955]
[1730779577827,5.724837,2420.3,2420.2,0.74873951]
[1730779578030,10.45686588,2420.3,2420.2,0.08875082]
[1730779578565,4.13288,2419.7,2419.5,0.49564598]
[1730779578738,4.13288,2419.7,2419.6,0.59460188]
[1730779580162,4.13288,2419.7,2419.5,0.49619631]
[1730779580462,4.13288,2419.7,2419.4,0.8232]
[1730779580654,4.13288,2419.7,2419.5,0.49617992]
[1730779582871,4.13285,2419.7,2419.5,0.49617992]
[1730779583745,8.26569,2419.7,2419.5,0.49610694]
[1730779583950,5.038459,2419.7,2419.5,0.49610694]
[1730779584345,9.171299,2419.7,2419.5,0.49610694]
[1730779584546,5.038459,2419.7,2419.5,0.49610694]
[1730779585044,5.038459,2419.7,2419.4,1.31930694]
[1730779585643,5.038449,2419.7,2419.4,1.31930694]
[1730779585835,4.13283,2419.7,2419.4,1.31930694]
[1730779586036,4.92303,2419.9,2419.4,1.31930694]
[1730779586037,4.13261,2419.8,2419.4,1.31930694]
[1730779586982,4.13261,2419.8,2419.5,0.59517395]
[1730779587274,4.13261,2419.8,2419.6,0.59517395]
[1730779587509,4.13261,2419.8,2419.7,0.59517395]
[1730779588079,5.038174,2419.8,2419.7,1.07009252]
[1730779588294,1.735664,2419.8,2419.1,0.49610694]
[1730779588512,7.523379,2419.8,2419.2,3.55627384]
[1730779588687,8.26536,2419.8,2419.3,6.4636919]
[1730779588881,8.26536,2419.8,2419.4,1.06874496]
[1730779589184,8.26536,2419.8,2419.5,1.06874496]
[1730779589391,4.13274,2419.7,2419.6,1.06874496]
[1730779589882,8.2654,2419.8,2419.6,1.06874496]
[1730779590083,8.2654,2419.8,2419.7,0.47499191]
[1730779590284,8.2654,2419.8,2419.7,0.77172714]
[1730779590622,4.13268,2419.8,2419.3,5.39343342]
[1730779591379,4.13277,2419.7,2419.4,1.36525726]
[1730779591588,4.13277,2419.7,2419.5,1.36525726]
[1730779591887,4.13268,2419.8,2419.6,1.36528888]
[1730779592108,4.13268,2419.8,2419.7,0.77167472]
[1730779593721,8.26489,2419.9,2419.7,0.77167472]
[1730779594033,4.13257,2419.8,2419.4,1.72202888]
[1730779594323,4.13257,2419.8,2419.5,1.36527085]
[1730779594529,4.13257,2419.8,2419.6,1.36527085]
[1730779594683,4.13274,2419.7,2419.4,1.72202888]
[1730779594886,4.13274,2419.7,2419.5,1.36531193]
[1730779595106,4.13274,2419.7,2419.6,1.36531193]
[1730779599133,4.13274,2419.7,2419.6,1.36577765]
[1730779600450,4.1324,2419.9,2419.6,1.36577765]
[1730779600650,4.13259,2419.8,2419.7,1.36577765]
[1730779602638,4.13259,2419.8,2419.4,2.21690096]
[1730779602639,0.49625,2419.9,2419.3,0.7655]
[1730779602840,4.13225,2420.0,2419.7,0.89115584]
[1730779603057,4.13225,2420.0,2419.5,4.13295]
[1730779603239,4.13225,2420.0,2419.8,0.47519859]
[1730779603467,4.13225,2420.0,2419.9,1.36620252]
[1730779603664,5.036028,2420.0,2419.9,1.36620252]
[1730779604984,5.036028,2420.0,2419.9,1.36671067]
[1730779606582,5.036028,2420.0,2419.5,4.13295]
[1730779606743,4.13225,2420.0,2419.6,1.56557591]
[1730779606945,4.13225,2420.0,2419.7,1.86282551]
[1730779607192,4.1324,2419.9,2419.8,1.36737545]
[1730779613903,4.1324,2419.9,2419.4,6.65895888]
[1730779614128,4.1324,2419.9,2419.7,0.49563375]
[1730779614406,4.1324,2419.9,2419.5,1.36787975]
[1730779614407,5.28202888,2419.8,2419.1,0.49563375]
[1730779614571,4.13342,2419.3,2419.2,1.36865874]
[1730779614900,5.035447,2419.3,2419.2,1.36865874]
[1730779615506,5.035447,2419.3,2419.2,0.7735794]
[1730779615811,5.035447,2419.3,2419.2,1.36847792]
[1730779615966,4.13325,2419.4,2419.2,1.36847792]
[1730779616166,4.13325,2419.4,2419.3,0.7735794]
[1730779616610,0.7536,2419.5,2419.3,0.7735794]
[1730779616773,4.88677,2419.5,2419.4,0.6735794]
[1730779616975,0.794,2419.7,2419.4,0.6735794]
[1730779617313,4.92674,2419.7,2419.5,0.29752648]
[1730779617643,4.92674,2419.7,2419.2,5.85559888]
[1730779617843,4.13274,2419.7,2419.6,0.29730572]
[1730779618011,1.589763,2419.9,2419.6,0.29730572]
[1730779618012,5.722273,2419.9,2419.6,0.29730572]
[1730779618197,1.589763,2419.9,2419.7,0.29730572]
[1730779618542,5.722163,2419.9,2419.8,0.29730572]
[1730779621220,0.826463,2419.9,2419.8,0.29730572]
[1730779621424,4.13235,2420.0,2419.8,0.29730572]
[1730779621631,4.13235,2420.0,2419.9,0.29730572]
[1730779624333,4.13235,2420.0,2419.7,0.8329]
[1730779624536,4.13235,2420.0,2419.9,0.29723502]
[1730779624744,4.89579,2420.1,2419.9,0.29724143]
[1730779624948,4.89579,2420.1,2420.0,0.29724143]
[1730779625152,5.723657,2420.3,2420.0,0.29724143]
[1730779625361,5.723657,2420.3,2420.1,0.29714728]
[1730779625362,0.7655,2420.3,2420.1,0.29714728]
[1730779625572,0.7655,2420.3,2420.0,0.8076]
[1730779625573,4.13173,2420.3,2420.0,0.8076]
[1730779625848,4.13173,2420.3,2420.1,0.29721085]
[1730779626145,4.13173,2420.3,2420.2,0.29722455]
[1730779626355,4.89701,2420.5,2420.2,0.29722455]
[1730779626510,4.13155,2420.4,2420.3,0.29712544]
[1730779627033,4.03155,2420.4,2420.3,0.29712544]
[1730779627721,4.13123,2420.6,2420.3,0.29712544]
[1730779627922,0.8086,2420.7,2420.4,1.09672544]
[1730779628156,4.13104,2420.7,2420.4,0.7996]
[1730779628314,4.13104,2420.7,2420.5,0.29679443]
[1730779628516,4.13104,2420.7,2420.6,0.29679443]
[1730779629318,4.13104,2420.7,2420.4,0.7996]
[1730779629551,4.13104,2420.7,2420.5,0.29652083]
[1730779629738,4.13104,2420.7,2420.4,0.7996]
[1730779629941,4.13099,2420.8,2420.5,0.29652454]
[1730779630129,8.26196,2420.8,2420.6,0.29652454]
[1730779630333,4.13097,2420.8,2420.4,0.7996]
[1730779630654,4.13112,2420.7,2420.5,0.29647884]
[1730779630860,4.13112,2420.7,2420.4,0.7996]
[1730779631017,4.13112,2420.7,2420.5,0.29648717]
[1730779631334,4.13112,2420.7,2420.4,0.7996]
[1730779631539,4.13112,2420.7,2420.5,0.29640485]
[1730779631737,4.13097,2420.8,2420.4,0.7996]
[1730779631949,4.13097,2420.8,2420.5,0.29640524]
[1730779632113,4.13097,2420.8,2420.4,4.93111]
[1730779632315,4.13097,2420.8,2420.5,0.29638745]
[1730779632514,4.13097,2420.8,2420.4,0.7996]
[1730779632737,4.13097,2420.8,2420.5,0.29631673]
[1730779632954,4.13097,2420.8,2420.4,0.7996]
[1730779633161,4.13097,2420.8,2420.5,0.29636616]
[1730779633363,4.93937,2420.9,2420.4,4.93106]
[1730779633525,4.93937,2420.9,2420.5,0.2962872]
[1730779633717,4.93937,2420.9,2420.4,4.93106]
[1730779634062,4.93937,2420.9,2420.5,0.29628071]
[1730779634219,4.93937,2420.9,2420.4,4.93106]
[1730779634416,4.13089,2420.8,2420.5,0.29621217]
[1730779634642,4.93937,2420.9,2420.4,0.7996]
[1730779634842,4.1309,2420.8,2420.5,0.2962265]
[1730779635027,4.1309,2420.8,2420.4,0.7996]
[1730779635232,4.1309,2420.8,2420.5,0.29622662]
[1730779635436,4.1309,2420.8,2420.4,0.7996]
[1730779636160,4.1309,2420.8,2420.5,0.29616311]
[1730779636357,4.1309,2420.8,2420.4,4.93114]
[1730779636564,4.1309,2420.8,2420.5,0.29612086]
[1730779636719,4.1309,2420.8,2420.4,0.7996]
[1730779636920,4.1309,2420.8,2420.5,0.2961214]
[1730779637119,4.1309,2420.8,2420.4,0.7996]
[1730779637435,4.13077,2420.9,2420.5,1.72202888]
[1730779637767,4.13077,2420.9,2420.5,2.47482888]
[1730779639868,4.13052,2421.0,2420.5,6.60617888]
[1730779640546,8.26113,2421.0,2420.5,6.60617888]
[1730779640747,4.13052,2421.0,2420.5,6.60617888]
[1730779641349,8.2612,2421.0,2420.5,6.60617888]
[1730779641860,4.13052,2421.0,2420.5,6.60617888]
[1730779642065,4.13077,2420.9,2420.5,2.47482888]
[1730779642281,4.13089,2420.8,2420.5,0.7528]
[1730779643873,4.13077,2420.9,2420.5,0.7528]
[1730779644082,8.26163,2420.9,2420.5,0.7528]
[1730779645953,4.13088,2420.8,2420.5,0.7528]
[1730779646274,5.032963,2420.9,2420.5,0.7528]
[1730779646482,9.163823,2420.9,2420.5,0.7528]
[1730779647374,4.13086,2420.8,2420.6,0.29613191]
[1730779647544,4.13086,2420.8,2420.5,0.7528]
[1730779647745,4.13086,2420.8,2420.6,0.29614092]
[1730779647947,4.13086,2420.8,2420.5,0.7528]
[1730779648278,4.13086,2420.8,2420.6,0.29613967]
[1730779648486,5.0472423,2420.8,2420.5,0.7528]
[1730779648645,0.9163823,2420.8,2420.6,0.29620749]
[1730779648848,4.13074,2420.9,2420.5,0.7528]
[1730779649050,4.13074,2420.9,2420.6,0.2962087]
[1730779649280,4.13074,2420.9,2420.5,0.7528]
[1730779649477,4.13074,2420.9,2420.6,0.296313]
[1730779649643,4.13074,2420.9,2420.5,4.88416]
[1730779649844,4.13004,2421.3,2420.7,2.47862888]
[1730779649845,0.8237,2421.3,2420.7,2.47862888]
[1730779650074,5.76908,2421.3,2420.9,1.72202888]
[1730779650387,4.94538,2421.3,2420.9,1.72202888]
[1730779650568,4.13023,2421.2,2420.9,1.72202888]
[1730779650887,7.33,2421.6,2421.2,0.7578]
[1730779651188,7.33,2421.6,2421.4,1.72202888]
[1730779653183,7.33,2421.6,2421.5,5.18086722]
[1730779653691,4.129,2421.9,2421.5,1.05109574]
[1730779653845,0.7868,2422.2,2421.5,1.05109574]
[1730779653846,7.33,2421.8,2421.7,4.12931]
[1730779654048,7.33,2422.1,2421.8,6.65505888]
[1730779654485,7.33,2422.1,2421.8,2.52592888]
[1730779654980,7.33,2422.1,2421.8,6.65506888]
[1730779655185,7.33,2422.1,2422.0,1.72202888]
[1730779655489,7.33,2422.1,2421.6,4.93338]
[1730779655490,11.45873,2422.1,2421.6,4.93338]
[1730779655691,8.969815,2422.1,2421.7,0.29543918]
[1730779655995,4.12881,2422.0,2421.4,1.39488677]
[1730779656164,4.12881,2422.0,2421.5,0.76826303]
[1730779656364,7.33,2422.1,2421.6,0.7680995]
[1730779656564,11.45868,2422.1,2421.7,0.29548175]
[1730779656887,11.45868,2422.1,2421.5,4.12956]
[1730779656888,11.45868,2422.1,2421.8,0.29548175]
[1730779657052,11.45868,2422.1,2421.6,4.12941]
[1730779657253,7.33,2422.0,2421.7,0.29537966]
[1730779657489,7.33,2422.0,2421.8,0.19537966]
[1730779657692,7.33,2422.0,2421.7,4.95777]
[1730779658070,7.33,2422.0,2421.7,9.08699]
[1730779658250,7.33,2422.0,2421.7,4.95777]
[1730779658653,7.33,2422.0,2421.8,0.4722379]
[1730779658891,7.33,2422.1,2421.8,4.12915]
[1730779659060,7.33,2422.1,2421.9,4.12889]
[1730779659454,7.33,2422.1,2422.0,0.798]
[1730779661062,11.45864,2422.1,2421.7,0.7918]
[1730779661284,4.1289,2422.0,2421.8,0.47183559]
[1730779661590,8.25781,2422.0,2421.7,0.7918]
[1730779661755,4.1289,2422.0,2421.7,0.7918]
[1730779663003,4.12912,2421.9,2421.6,0.8001]
[1730779663298,7.33,2421.8,2421.4,1.3898152]
[1730779663590,7.33,2421.8,2421.5,4.60141283]
[1730779663888,7.33,2421.8,2421.6,0.47176283]
[1730779664090,7.33,2421.9,2421.5,4.12965]
[1730779664395,11.45901,2421.9,2421.4,4.92985]
[1730779664579,11.45901,2421.9,2421.6,0.47185104]
[1730779664760,11.45901,2421.9,2421.4,4.92985]
[1730779664960,11.45901,2421.9,2421.5,1.06175127]
[1730779665306,11.45901,2421.9,2421.6,0.47188364]
[1730779665473,11.45901,2421.9,2421.4,4.92992]
[1730779665661,11.45901,2421.9,2421.5,0.47191065]
[1730779665862,15.58811,2421.9,2421.6,0.47191065]
[1730779666059,15.58811,2421.9,2421.4,0.8001]
[1730779666366,15.58811,2421.9,2421.5,1.06188835]
[1730779666700,4.12918,2421.8,2421.4,0.8001]
[1730779666899,11.45901,2421.9,2421.4,4.92986]
[1730779667305,7.33,2421.9,2421.5,4.12959]
[1730779667677,7.33,2421.9,2421.6,0.47197561]
[1730779667878,6.9102707,2421.9,2421.8,11.68418004]
[1730779668074,6.9102707,2421.9,2421.8,13.52543479]
[1730779668286,6.9102707,2421.9,2421.8,13.52516892]
[1730779668488,6.04887772,2421.9,2421.8,13.52516892]
[1730779668705,4.51756125,2421.9,2421.8,13.52467586]
[1730779669537,4.51756125,2421.9,2421.8,13.81940088]
[1730779671871,4.51756125,2421.9,2421.8,12.46328004]
[1730779672098,4.12753,2422.8,2422.0,0.7954]
[1730779672314,4.12753,2422.8,2422.4,0.7954]
[1730779672467,4.12753,2422.8,2422.5,0.76580158]
[1730779672666,4.12753,2422.8,2422.6,0.29453506]
[1730779672913,4.12753,2422.8,2422.7,0.29452618]
[1730779673811,4.12731,2422.9,2422.7,0.29452618]
[1730779674035,4.12731,2422.9,2422.8,0.29454025]
[1730779674203,4.95141,2423.1,2422.4,4.92353]
[1730779674204,4.12714,2423.0,2422.4,0.7954]
[1730779674399,4.12714,2423.0,2422.5,0.76591236]
[1730779674600,4.12728,2422.9,2422.6,0.76591236]
[1730779674834,4.12728,2422.9,2422.7,0.29457767]
[1730779675143,8.25469,2422.9,2422.8,0.29457767]
[1730779675311,4.12728,2422.9,2422.8,0.29465291]
[1730779675498,4.12728,2422.9,2422.4,0.7954]
[1730779675698,4.12757,2422.8,2422.5,0.76612738]
[1730779676002,4.12757,2422.8,2422.6,0.76612738]
[1730779676205,4.12757,2422.8,2422.7,0.29466037]
[1730779676597,4.12731,2422.9,2422.7,0.29466037]
[1730779676802,4.12731,2422.9,2422.8,0.29466037]
[1730779677232,4.12731,2422.9,2422.4,0.7954]
[1730779677445,4.12755,2422.8,2422.5,0.76669918]
[1730779677603,4.12755,2422.8,2422.6,0.76669918]
[1730779677806,4.12755,2422.8,2422.7,0.29488029]
[1730779678305,4.12755,2422.8,2422.7,0.76695434]
[1730779678631,4.12755,2422.8,2422.7,0.29488029]
[1730779679540,4.12755,2422.8,2422.4,0.7954]
[1730779679709,4.12755,2422.8,2422.5,1.35812342]
[1730779680045,4.12755,2422.8,2422.6,0.76763114]
[1730779680205,4.12755,2422.8,2422.7,0.76763114]
[1730779681343,4.12731,2422.9,2422.7,0.76763114]
[1730779681552,4.12731,2422.9,2422.8,0.76763114]
[1730779682159,4.12731,2422.9,2422.4,0.7954]
[1730779682362,4.12763,2422.7,2422.5,1.35911074]
[1730779682663,4.12763,2422.7,2422.6,1.35911074]
[1730779683016,8.25474,2422.9,2422.6,1.35911074]
[1730779683251,8.25474,2422.9,2422.7,0.76818281]
[1730779683455,4.12745,2422.8,2422.4,0.7954]
[1730779683644,4.12745,2422.8,2422.5,1.35936319]
[1730779683825,4.12771,2422.7,2422.6,1.35936319]
[1730779684024,4.89065,2422.8,2422.6,0.7683255]
[1730779684222,4.89065,2422.8,2422.4,0.7954]
[1730779684223,3.7632,2422.7,2422.0,0.7914]
[1730779684421,4.12816,2422.4,2422.1,1.36018571]
[1730779684640,4.12816,2422.4,2422.2,1.36018571]
[1730779684845,4.12816,2422.4,2422.3,0.76879039]
[1730779685353,4.93326,2422.4,2422.3,0.76879039]
[1730779686937,5.839397,2422.4,2422.3,0.76879039]
[1730779688159,5.839397,2422.4,2422.3,0.76895926]
[1730779688831,5.839397,2422.4,2422.3,0.7690004]
[1730779689442,4.12854,2422.2,2421.9,0.59180437]
[1730779689641,4.12854,2422.2,2421.4,0.8046]
[1730779689642,4.12881,2422.0,2421.5,0.57583691]
[1730779689839,4.12881,2422.0,2421.6,1.3613065]
[1730779690070,4.12899,2421.9,2421.7,1.3613065]
[1730779690230,4.12899,2421.9,2421.8,0.76942387]
[1730779692986,4.12899,2421.9,2421.8,0.66942387]
[1730779694091,4.12899,2421.9,2421.8,0.47351375]
[1730779694258,4.12899,2421.9,2421.8,0.47351285]
[1730779697468,4.12899,2421.9,2421.7,1.72077582]
[1730779697872,4.12899,2421.9,2421.8,0.47374605]
[1730779698096,4.12823,2422.4,2421.9,4.1289]
[1730779698288,4.12832,2422.3,2422.0,0.47374605]
[1730779698506,4.12832,2422.3,2421.9,1.72077582]
[1730779698799,4.12832,2422.3,2422.0,0.47361001]
[1730779699001,4.12832,2422.3,2421.9,1.72077582]
[1730779699002,4.12864,2422.1,2421.9,1.72077582]
[1730779699378,4.12832,2422.3,2421.9,1.72077582]
[1730779699580,4.12852,2422.2,2421.9,1.72077582]
[1730779705009,4.12852,2422.2,2422.0,0.29607823]
[1730779705221,4.12852,2422.2,2421.9,1.72077582]
[1730779705417,4.12852,2422.2,2422.0,0.29611034]
[1730779705577,4.12852,2422.2,2421.9,1.72077582]
[1730779705779,4.12864,2422.1,2422.0,0.29613368]
[1730779706213,5.774656,2422.1,2422.0,0.29613368]
[1730779706607,4.12898,2421.9,2421.7,0.47381857]
[1730779706791,4.94946,2421.8,2421.4,0.8095]
[1730779706993,4.12941,2421.7,2421.5,0.77007893]
[1730779707190,4.94946,2421.8,2421.6,0.29618017]
[1730779707424,4.94946,2421.8,2421.7,0.29618017]
[1730779708283,4.129,2421.9,2421.7,0.29618017]
[1730779708511,4.129,2421.9,2421.8,0.29624553]
[1730779708708,4.129,2421.9,2421.8,0.19624553]
[1730779708916,4.129,2421.9,2421.5,1.72077582]
[1730779709115,4.129,2421.9,2421.6,0.47401378]
[1730779709320,4.129,2421.9,2421.5,1.72077582]
[1730779709521,4.129,2421.9,2421.6,0.47409331]
[1730779709783,4.129,2421.9,2421.5,1.72077582]
[1730779710016,4.129,2421.9,2421.6,0.47410258]
[1730779710217,5.1187046,2421.9,2421.5,1.72077582]
[1730779710519,4.12921,2421.8,2421.6,0.4740961]
[1730779710682,4.12921,2421.8,2421.5,1.72077582]
[1730779710886,5.1187046,2421.9,2421.6,0.47410061]
[1730779711096,9.2478146,2421.9,2421.5,1.72077582]
[1730779711417,4.12923,2421.8,2421.6,0.47408854]
[1730779711650,4.12923,2421.8,2421.5,1.72077582]
[1730779712153,4.12923,2421.8,2421.6,0.47422768]
[1730779712453,4.12923,2421.8,2421.5,1.72077582]
[1730779712646,4.12923,2421.8,2421.6,0.47421353]
[1730779712860,4.12923,2421.8,2421.5,1.72077582]
[1730779713146,4.12923,2421.8,2421.6,0.47419489]
[1730779713355,4.12923,2421.8,2421.5,1.72077582]
[1730779713512,4.12923,2421.8,2421.6,0.47438973]
[1730779713710,0.8134,2422.0,2421.5,1.72077582]
[1730779713909,0.8134,2422.0,2421.6,0.4743726]
[1730779713910,4.129,2421.9,2421.6,0.4743726]
[1730779714108,4.129,2421.9,2421.7,0.4743726]
[1730779714345,8.25812,2421.9,2421.5,1.72077582]
[1730779714639,4.12916,2421.8,2421.6,0.4743769]
[1730779714845,4.12916,2421.8,2421.5,1.72077582]
[1730779715148,4.12916,2421.8,2421.6,0.47439196]
[1730779715343,4.12916,2421.8,2421.5,1.72077582]
[1730779715549,4.12916,2421.8,2421.6,0.47440343]
[1730779715707,4.12916,2421.8,2421.7,0.47440343]
[1730779715912,4.129,2421.9,2421.7,0.47440343]
[1730779716147,4.129,2421.9,2421.5,1.72077582]
[1730779716317,4.129,2421.9,2421.6,0.47437682]
[1730779716515,4.129,2421.9,2421.7,0.47437682]
[1730779716711,8.25811,2421.9,2421.5,1.72077582]
[1730779716912,8.25811,2421.9,2421.6,0.47441209]
[1730779717125,8.25811,2421.9,2421.7,0.47441209]
[1730779717428,5.0,2423.0,2421.7,0.47441209]
[1730779717429,0.7966,2422.9,2421.9,3.8247]
[1730779717648,4.12781,2422.6,2422.4,1.72077582]
[1730779717851,8.2557,2422.6,2422.5,0.47396231]
[1730779718034,4.12781,2422.6,2422.2,1.72077582]
[1730779718234,4.12757,2422.8,2422.4,1.72077582]
[1730779719546,4.12757,2422.8,2422.3,4.95186]
[1730779719921,8.25512,2422.8,2422.3,4.95186]
[1730779720116,4.12755,2422.8,2422.3,4.95189]
[1730779720849,4.12755,2422.8,2422.4,0.29593548]
[1730779721050,4.12755,2422.8,2422.5,0.29593548]
[1730779721250,4.12755,2422.8,2422.4,4.12813]
[1730779721463,4.12755,2422.8,2422.5,0.29583659]
[1730779721609,4.12755,2422.8,2422.4,4.12813]
[1730779721813,4.12755,2422.8,2422.5,0.29582186]
[1730779722041,4.12755,2422.8,2422.4,4.12813]
[1730779722240,4.12755,2422.8,2422.5,0.29582117]
[1730779722452,4.12755,2422.8,2422.3,0.8236]
[1730779722639,4.12763,2422.7,2422.4,0.2957316]
[1730779722847,4.12762,2422.7,2422.5,0.2957316]
[1730779723047,0.412762,2422.6,2422.1,0.8289]
[1730779723356,4.1282,2422.4,2422.2,0.29580787]
[1730779723539,4.1282,2422.4,2421.9,5.54947198]
[1730779723747,4.1282,2422.4,2422.0,0.76908079]
[1730779723945,4.1282,2422.4,2422.1,0.76908079]
[1730779724161,4.1282,2422.4,2422.2,0.29579627]
[1730779724323,4.12805,2422.5,2422.3,0.29579627]
[1730779724530,4.12805,2422.5,2422.1,0.47323157]
[1730779724859,4.12805,2422.5,2422.2,0.29576537]
[1730779725037,4.12805,2422.5,2422.3,0.29576537]
[1730779725240,4.12805,2422.5,2422.1,0.47325055]
[1730779725459,4.12805,2422.5,2422.2,0.29575764]
[1730779725662,9.16439,2422.5,2422.0,4.12881]
[1730779725866,4.94204,2422.4,2422.1,0.29576685]
[1730779726082,4.94204,2422.4,2422.2,0.29576685]
[1730779726361,4.94204,2422.4,2422.0,0.47325276]
[1730779726568,4.94204,2422.4,2421.9,4.95785]
[1730779726569,4.94204,2422.4,2422.1,0.29577681]